bitfinex/quotes_SOLUSD_20250821
["timestamp","ask_amount","ask_price","bid_price","bid_amount"]
[1755749477664,0.06,188.26,188.25,121.67163425]
[1755749478052,0.76,188.26,188.25,121.67163425]
[1755749479072,0.76,188.26,188.25,147.67163425]
[1755749479377,0.76,188.26,188.23,3.70731111]
[1755749479573,0.76,188.26,188.23,1.408735]
[1755749479574,3.70731111,188.24,188.23,1.408735]
[1755749479888,4.40731111,188.24,188.23,26.0]
[1755749480185,4.40731111,188.24,188.2,37.88]
[1755749480374,0.7,188.23,188.2,0.28432314]
[1755749480566,0.7,188.23,188.19,37.91]
[1755749480567,4.40731111,188.23,188.19,37.91]
[1755749480767,3.70731111,188.21,188.19,0.03]
[1755749480979,4.40731111,188.2,188.19,0.03]
[1755749481502,4.40731111,188.2,188.19,26.03]
[1755749482189,4.40731111,188.2,188.19,0.03]
[1755749485079,0.7,188.2,188.19,0.03]
[1755749485272,4.40731111,188.2,188.19,0.03]
[1755749485894,13.79775558,188.26,188.19,0.03]
[1755749486120,4.37731111,188.22,188.19,0.03]
[1755749486296,3.70731111,188.22,188.19,0.03]
[1755749486475,0.67,188.22,188.19,26.03]
[1755749486676,0.67,188.22,188.19,29.73731111]
[1755749487277,0.67,188.24,188.2,3.70731111]
[1755749487501,0.06,188.26,188.2,3.70731111]
[1755749487502,3.70731111,188.25,188.2,3.70731111]
[1755749487678,0.67,188.23,188.2,3.70731111]
[1755749487879,0.67,188.23,188.19,26.03]
[1755749488089,0.67,188.25,188.2,29.99163425]
[1755749488399,0.67,188.24,188.2,29.99163425]
[1755749489484,3.70731111,188.25,188.2,29.99163425]
[1755749489802,0.67,188.24,188.2,29.99163425]
[1755749490002,0.67,188.23,188.22,26.0]
[1755749491002,0.67,188.25,188.22,26.0]
[1755749491208,0.67,188.24,188.22,26.0]
[1755749491879,0.06,188.26,188.23,26.0]
[1755749492079,0.73,188.26,188.23,29.70731111]
[1755749492483,0.06,188.26,188.24,3.70731111]
[1755749492702,0.06,188.26,188.25,29.99163425]
[1755749493203,0.06,188.26,188.25,26.28432314]
[1755749493397,0.06,188.26,188.25,29.99163425]
[1755749494320,0.06,188.26,188.25,26.28432314]
[1755749494612,0.06,188.26,188.25,29.99163425]
[1755749495606,0.06,188.26,188.25,26.28432314]
[1755749495793,0.06,188.26,188.25,29.99163425]
[1755749496801,0.06,188.26,188.25,26.28432314]
[1755749496999,0.06,188.26,188.25,29.99163425]
[1755749502914,0.06,188.26,188.25,26.28432314]
[1755749503215,0.06,188.26,188.25,29.99163425]
[1755749505788,0.06,188.26,188.25,89.80371924]
[1755749505989,0.06,188.26,188.25,103.54147482]
[1755749506191,0.06,188.26,188.25,104.07268331]
[1755749506390,0.06,188.26,188.25,107.77999442]
[1755749506592,0.06,188.26,188.25,106.20107831]
[1755749506805,0.06,188.26,188.25,105.66986982]
[1755749507198,0.06,188.26,188.25,143.52986982]
[1755749508198,0.06,188.26,188.25,85.92002925]
[1755749508410,0.06,188.26,188.25,123.78002925]
[1755749509203,0.06,188.26,188.25,85.92002925]
[1755749509508,0.06,188.26,188.25,123.78002925]
[1755749510397,0.06,188.26,188.25,6.12002925]
[1755749510708,0.73,188.26,188.25,43.96002925]
[1755749510900,0.73,188.26,188.25,43.81786768]
[1755749511294,0.06,188.26,188.25,43.96002925]
[1755749516399,0.78,188.26,188.25,43.96002925]
[1755749516613,0.78,188.26,188.25,2.41271814]
[1755749516825,0.78,188.26,188.25,66.25271814]
[1755749518242,0.78,188.26,188.25,63.84]
[1755749518459,0.78,188.26,188.25,26.0]
[1755749521223,0.06,188.26,188.25,26.0]
[1755749521624,0.06,188.26,188.25,29.70731111]
[1755749522133,0.78,188.26,188.25,29.70731111]
[1755749522325,0.78,188.26,188.25,26.0]
[1755749523650,0.06,188.26,188.25,67.83163425]
[1755749523838,0.06,188.26,188.25,68.52163425]
[1755749524037,0.06,188.26,188.25,72.22894525]
[1755749524336,0.06,188.26,188.25,131.34103024]
[1755749524539,0.06,188.26,188.25,145.07878582]
[1755749525036,0.06,188.26,188.25,148.78609693]
[1755749525442,0.06,188.28,188.27,18.90711469]
[1755749525749,0.06,188.28,188.27,64.58822162]
[1755749525927,0.06,188.28,188.27,65.27822162]
[1755749526256,0.06,188.28,188.27,61.57091051]
[1755749526912,0.06,188.28,188.27,56.25938983]
[1755749527112,0.06,188.28,188.27,55.54938983]
[1755749527538,0.06,188.28,188.27,41.81163425]
[1755749527918,0.06,188.28,188.27,38.10432314]
[1755749528242,0.06,188.28,188.27,41.81163425]
[1755749531242,0.06,188.28,188.27,121.61163425]
[1755749531437,0.06,188.28,188.27,123.74003025]
[1755749533034,0.06,188.28,188.27,120.03271914]
[1755749533233,0.06,188.28,188.27,123.74003025]
[1755749533420,0.06,188.28,188.27,120.03271914]
[1755749533627,0.06,188.28,188.27,39.948396]
[1755749533628,0.78,188.28,188.27,39.948396]
[1755749533821,0.78,188.28,188.27,26.0]
[1755749534021,4.48731111,188.28,188.27,26.28432314]
[1755749534241,4.48731111,188.28,188.27,26.0]
[1755749534925,4.48731111,188.28,188.27,26.28432314]
[1755749535437,4.48731111,188.28,188.26,37.82]
[1755749535642,4.42731111,188.27,188.26,37.82]
[1755749535939,4.42731111,188.27,188.26,0.28432314]
[1755749536172,0.72,188.27,188.26,0.28432314]
[1755749536314,4.42731111,188.27,188.26,0.28432314]
[1755749537642,0.72,188.27,188.26,0.28432314]
[1755749538141,4.42731111,188.27,188.26,0.28432314]
[1755749538519,0.72,188.27,188.26,0.28432314]
[1755749538830,4.42731111,188.27,188.26,0.28432314]
[1755749539022,0.72,188.27,188.26,0.28432314]
[1755749539423,4.42731111,188.27,188.26,0.28432314]
[1755749539824,0.06,188.28,188.27,0.28432314]
[1755749540038,3.76731111,188.28,188.27,0.28432314]
[1755749540342,4.48731111,188.28,188.27,0.28432314]
[1755749543220,4.48731111,188.28,188.26,0.31432314]
[1755749543421,0.69,188.27,188.26,0.31432314]
[1755749543657,4.39731111,188.27,188.26,0.31432314]
[1755749545342,0.69,188.27,188.26,0.31432314]
[1755749545643,0.06,188.28,188.27,26.28432314]
[1755749545845,0.06,188.28,188.27,68.50163425]
[1755749546636,0.06,188.28,188.27,70.63025625]
[1755749547225,0.06,188.28,188.27,69.92025625]
[1755749550043,0.06,188.28,188.27,66.21294514]
[1755749551746,0.06,188.28,188.27,146.01294514]
[1755749553332,4.45731111,188.28,188.27,105.8]
[1755749553533,0.75,188.28,188.27,143.6]
[1755749554053,0.75,188.28,188.27,143.74216157]
[1755749554842,0.06,188.28,188.27,143.88432314]
[1755749557637,0.06,188.28,188.27,109.79163425]
[1755749557954,0.06,188.28,188.27,147.57163425]
[1755749558160,0.06,188.28,188.27,149.70025625]
[1755749558336,0.06,188.28,188.27,150.41025625]
[1755749558837,0.06,188.28,188.27,164.14801183]
[1755749560352,0.06,188.28,188.27,108.21294514]
[1755749560532,0.06,188.28,188.27,145.99294514]
[1755749561661,0.06,188.28,188.27,149.70025625]
[1755749565631,0.06,188.28,188.27,108.21294514]
[1755749565832,0.75,188.28,188.27,119.99294514]
[1755749566254,0.75,188.28,188.27,82.21294514]
[1755749566432,0.06,188.28,188.27,119.99294514]
[1755749568438,0.75,188.28,188.27,119.99294514]
[1755749569264,0.75,188.28,188.27,66.19294514]
[1755749569469,0.75,188.28,188.27,66.05078357]
[1755749571971,0.75,188.28,188.27,66.19294514]
[1755749572637,0.75,188.28,188.27,28.41294514]
[1755749572838,0.75,188.28,188.27,66.17294514]
[1755749575050,0.06,188.28,188.27,66.17294514]
[1755749575255,0.75,188.28,188.27,66.17294514]
[1755749577672,0.75,188.28,188.27,64.04432314]
[1755749578997,4.45731111,188.28,188.27,26.28432314]
[1755749579345,0.75,188.28,188.27,26.28432314]
[1755749580444,4.45731111,188.28,188.27,0.28432314]
[1755749582253,8.16462222,188.28,188.26,0.03]
[1755749582450,0.14216157,188.26,188.24,0.03]
[1755749582650,4.39731111,188.25,188.23,0.03]
[1755749582955,4.39731111,188.24,188.23,0.03]
[1755749586073,18.13506669,188.24,188.23,0.03]
[1755749587656,4.39731111,188.24,188.23,0.03]
[1755749591860,4.53947268,188.24,188.23,0.03]
[1755749592273,44.13506669,188.24,188.23,0.03]
[1755749594560,13.73775558,188.2,188.18,0.03]
[1755749594862,55.20506669,188.2,188.18,0.03]
[1755749595062,55.89506669,188.2,188.18,0.03]
[1755749595661,59.6023778,188.2,188.18,0.03]
[1755749597287,0.14216157,188.19,188.18,0.03]
[1755749597590,39.73775558,188.17,188.09,0.66]
[1755749597794,43.44506669,188.17,188.09,0.66]
[1755749597992,44.13506669,188.17,188.09,0.66]
[1755749598193,44.13506669,188.17,188.04,0.1]
[1755749598194,44.13506669,188.17,188.07,0.76]
[1755749598881,44.13506669,188.17,188.07,0.90216157]
[1755749599086,44.13506669,188.17,188.07,26.90216157]
[1755749599499,13.73775558,188.16,188.07,26.76]
[1755749599792,3.70731111,188.08,188.07,0.1]
[1755749603106,4.42731111,188.08,188.07,0.1]
[1755749604317,18.16506669,188.08,188.07,0.1]
[1755749604607,2.77434498,188.17,188.07,0.1]
[1755749604812,3.70731111,188.09,188.07,0.8]
[1755749604984,3.70731111,188.09,188.07,0.1]
[1755749605794,3.70731111,188.08,188.07,0.1]
[1755749606483,3.70731111,188.09,188.07,0.8]
[1755749606683,3.70731111,188.09,188.07,0.1]
[1755749606882,3.70731111,188.08,188.07,0.1]
[1755749607397,3.70731111,188.09,188.07,0.8]
[1755749607922,3.70731111,188.08,188.07,0.8]
[1755749608121,3.70731111,188.1,188.07,0.8]
[1755749608284,3.70731111,188.1,188.08,0.7]
[1755749608483,3.70731111,188.1,188.07,0.8]
[1755749609283,3.70731111,188.1,188.07,0.1]
[1755749609484,3.70731111,188.1,188.07,0.8]
[1755749610006,3.70731111,188.09,188.07,0.8]
[1755749610307,3.70731111,188.09,188.07,0.1]
[1755749610690,3.70731111,188.08,188.07,0.1]
[1755749611211,3.70731111,188.1,188.07,0.8]
[1755749612523,0.72,188.16,188.08,4.40731111]
[1755749612829,3.70731111,188.14,188.09,4.69163425]
[1755749612983,3.70731111,188.14,188.1,0.7]
[1755749613186,3.70731111,188.17,188.12,3.70731111]
[1755749613415,3.70731111,188.17,188.13,0.98432314]
[1755749613790,3.70731111,188.17,188.13,16.96344414]
[1755749614413,4.42731111,188.17,188.13,16.96344414]
[1755749615507,3.70731111,188.16,188.13,0.7]
[1755749616416,0.72,188.17,188.12,15.979121]
[1755749616620,3.70731111,188.16,188.13,0.7]
[1755749616931,0.72,188.17,188.13,0.7]
[1755749617102,3.70731111,188.16,188.13,0.7]
[1755749617291,4.42731111,188.15,188.12,15.979121]
[1755749617496,4.42731111,188.15,188.1,30.40731111]
[1755749617497,3.70731111,188.14,188.13,0.28432314]
[1755749617697,4.42731111,188.14,188.13,0.28432314]
[1755749618819,4.42731111,188.14,188.07,26.1]
[1755749618998,3.70731111,188.11,188.09,15.979972]
[1755749619320,3.70731111,188.11,188.1,0.28432314]
[1755749619527,4.42731111,188.11,188.1,0.14216157]
[1755749620204,4.42731111,188.11,188.07,26.1]
[1755749620405,3.70731111,188.1,188.08,0.14216157]
[1755749620609,3.70731111,188.1,188.08,0.28432314]
[1755749620806,3.70731111,188.1,188.08,0.14216157]
[1755749621113,3.70731111,188.1,188.08,0.28432314]
[1755749621314,3.70731111,188.09,188.08,0.14216157]
[1755749621515,3.70731111,188.09,188.07,0.1]
[1755749621721,3.70731111,188.09,188.08,0.28432314]
[1755749623633,3.70731111,188.1,188.08,0.28432314]
[1755749623999,0.72,188.14,188.08,0.98432314]
[1755749624208,3.70731111,188.12,188.08,0.98432314]
[1755749624425,3.70731111,188.1,188.08,16.26770014]
[1755749624624,4.42731111,188.09,188.08,15.983377]
[1755749624808,4.42731111,188.09,188.07,0.1]
[1755749625012,4.42731111,188.08,188.07,0.1]
[1755749625934,3.70731111,188.08,188.07,0.1]
[1755749626731,3.70731111,188.09,188.07,0.1]
[1755749627129,4.42731111,188.08,188.07,0.1]
[1755749628630,0.72,188.1,188.07,0.1]
[1755749628930,3.70731111,188.08,188.07,0.1]
[1755749629532,0.72,188.09,188.07,0.1]
[1755749629733,3.70731111,188.08,188.07,0.1]
[1755749631841,4.42731111,188.08,188.07,0.1]
[1755749632227,3.70731111,188.08,188.07,0.1]
[1755749634331,4.36731111,188.08,188.07,0.1]
[1755749637747,3.70731111,188.08,188.07,0.1]
[1755749640462,0.66,188.14,188.07,1.08432314]
[1755749640756,3.70731111,188.1,188.07,0.38432314]
[1755749641434,0.66,188.11,188.07,0.38432314]
[1755749641638,3.70731111,188.09,188.07,0.38432314]
[1755749642457,3.70731111,188.1,188.07,1.08432314]
[1755749642628,0.66,188.16,188.09,0.28432314]
[1755749642959,3.70731111,188.13,188.1,0.7]
[1755749643132,3.70731111,188.14,188.1,0.7]
[1755749643655,4.36731111,188.14,188.1,0.7]
[1755749643858,3.76731111,188.18,188.13,0.28432314]
[1755749644155,3.70731111,188.16,188.14,0.28432314]
[1755749644361,3.70731111,188.15,188.14,0.28432314]
[1755749644544,4.36731111,188.15,188.14,0.28432314]
[1755749645043,3.70731111,188.15,188.14,0.28432314]
[1755749646228,0.06,188.18,188.11,29.99163425]
[1755749646430,0.06,188.18,188.16,3.99163425]
[1755749647231,0.06,188.18,188.16,0.28432314]
[1755749647430,4.36731111,188.17,188.13,29.707311]
[1755749647631,3.70731111,188.16,188.14,0.28432314]
[1755749647853,4.36731111,188.16,188.14,0.28432314]
[1755749648244,0.66,188.16,188.14,0.28432314]
[1755749649169,0.66,188.15,188.14,0.28432314]
[1755749649661,0.06,188.18,188.14,0.28432314]
[1755749649964,0.72,188.18,188.14,3.99163425]
[1755749650338,0.72,188.18,188.14,0.28432314]
[1755749650537,0.06,188.18,188.17,0.28432314]
[1755749650858,0.06,188.18,188.17,3.99163425]
[1755749651747,0.06,188.18,188.17,0.28432314]
[1755749652156,0.72,188.18,188.17,0.28432314]
[1755749653164,0.72,188.18,188.15,0.28432314]
[1755749653467,0.66,188.17,188.15,0.28432314]
[1755749655845,0.06,188.18,188.16,0.28432314]
[1755749656053,0.06,188.18,188.16,3.99163425]
[1755749656543,0.72,188.18,188.16,0.28432314]
[1755749657358,0.72,188.18,188.14,29.707311]
[1755749657533,0.72,188.18,188.15,3.70731111]
[1755749657736,0.72,188.18,188.14,32.43443322]
[1755749658871,0.72,188.18,188.14,33.13443322]
[1755749659267,0.72,188.18,188.15,0.28432314]
[1755749660337,0.66,188.17,188.15,0.28432314]
[1755749660538,0.66,188.16,188.15,0.28432314]
[1755749660767,0.72,188.18,188.15,0.28432314]
[1755749661540,0.06,188.18,188.15,0.28432314]
[1755749661744,0.66,188.17,188.15,0.28432314]
[1755749662068,3.76731111,188.18,188.15,0.28432314]
[1755749662264,4.36731111,188.16,188.14,3.707311]
[1755749662447,4.36731111,188.15,188.14,3.707311]
[1755749662944,4.36731111,188.15,188.11,26.0]
[1755749663159,0.72,188.14,188.09,4.40731111]
[1755749663363,0.72,188.13,188.11,0.28432314]
[1755749663670,3.70731111,188.15,188.11,26.14216157]
[1755749663974,4.42731111,188.15,188.12,0.14216157]
[1755749665068,4.42731111,188.14,188.12,0.14216157]
[1755749666263,3.70731111,188.14,188.12,0.14216157]
[1755749666469,0.72,188.13,188.12,0.14216157]
[1755749666762,4.42731111,188.14,188.12,0.14216157]
[1755749668573,0.72,188.13,188.12,0.14216157]
[1755749669674,0.72,188.13,188.11,26.14216157]
[1755749669875,3.70731111,188.14,188.11,26.14216157]
[1755749670074,4.42731111,188.12,188.07,7.51462211]
[1755749670261,0.72,188.11,188.1,0.14216157]
[1755749670456,0.72,188.11,188.07,29.80731111]
[1755749670772,0.72,188.11,188.08,0.14216157]
[1755749671293,0.72,188.1,188.08,0.31432314]
[1755749671857,4.42731111,188.09,188.08,0.03]
[1755749672672,0.72,188.09,188.08,0.03]
[1755749676375,0.72,188.11,188.08,0.03]
[1755749676674,0.72,188.09,188.08,0.03]
[1755749677469,0.72,188.12,188.08,0.03]
[1755749677773,4.42731111,188.11,188.08,0.03]
[1755749677973,0.72,188.11,188.08,0.03]
[1755749678176,4.42731111,188.11,188.08,0.03]
[1755749678578,3.70731111,188.11,188.08,0.03]
[1755749678796,0.72,188.1,188.08,0.03]
[1755749678960,4.42731111,188.1,188.08,0.03]
[1755749679367,0.72,188.09,188.08,0.03]
[1755749682975,4.42731111,188.09,188.08,0.03]
[1755749683176,0.72,188.09,188.08,0.03]
[1755749684189,4.42731111,188.09,188.08,0.03]
[1755749685766,0.72,188.11,188.08,0.03]
[1755749685960,0.72,188.13,188.08,4.39731111]
[1755749686175,0.72,188.13,188.09,0.94432314]
[1755749686488,4.42731111,188.13,188.09,0.28432314]
[1755749686688,3.70731111,188.12,188.09,0.28432314]
[1755749686862,4.42731111,188.12,188.09,0.28432314]
[1755749687054,3.70731111,188.1,188.08,0.03]
[1755749687258,3.70731111,188.09,188.08,0.03]
[1755749687568,4.42731111,188.09,188.08,0.03]
[1755749694272,0.7,188.11,188.08,0.03]
[1755749694469,3.70731111,188.1,188.08,0.03]
[1755749694995,0.7,188.13,188.08,26.31432314]
[1755749695197,4.40731111,188.12,188.08,27.01432314]
[1755749695981,4.40731111,188.12,188.08,1.01432314]
[1755749696204,4.40731111,188.12,188.08,27.01432314]
[1755749697386,4.40731111,188.12,188.08,0.31432314]
[1755749697585,4.40731111,188.12,188.09,15.983377]
[1755749697788,4.40731111,188.11,188.09,15.983377]
[1755749697987,4.40731111,188.11,188.08,0.03]
[1755749698177,0.7,188.1,188.08,16.013377]
[1755749698376,3.70731111,188.11,188.09,0.28432314]
[1755749698576,4.40731111,188.11,188.09,0.28432314]
[1755749699998,0.7,188.11,188.09,0.28432314]
[1755749700216,0.06,188.16,188.09,0.28432314]
[1755749700510,3.76731111,188.16,188.12,0.28432314]
[1755749700797,0.7,188.15,188.08,16.013377]
[1755749701010,13.59559401,188.13,188.08,16.013377]
[1755749701332,3.70731111,188.09,188.08,16.013377]
[1755749701606,4.40731111,188.09,188.08,16.013377]
[1755749702101,3.70731111,188.11,188.08,16.29770014]
[1755749702396,4.40731111,188.1,188.08,16.29770014]
[1755749704327,0.7,188.1,188.08,16.29770014]
[1755749704481,4.40731111,188.1,188.08,16.29770014]
[1755749704675,4.40731111,188.09,188.08,0.03]
[1755749704904,18.14506669,188.09,188.08,0.03]
[1755749705134,42.08731111,188.09,188.08,0.03]
[1755749705513,37.68,188.09,188.08,0.03]
[1755749705702,0.84216157,188.12,188.08,0.03]
[1755749705703,0.7,188.12,188.08,0.03]
[1755749705901,13.59559401,188.17,188.08,1.01432314]
[1755749706102,3.70731111,188.13,188.08,1.01432314]
[1755749706339,4.40731111,188.13,188.08,1.01432314]
[1755749706504,0.7,188.12,188.09,3.807311]
[1755749706832,4.40731111,188.11,188.09,3.807311]
[1755749707223,0.7,188.1,188.09,3.807311]
[1755749707531,4.40731111,188.1,188.09,3.807311]
[1755749707700,3.70731111,188.1,188.08,0.03]
[1755749707906,4.40731111,188.09,188.08,3.837311]
[1755749708507,4.40731111,188.09,188.08,0.03]
[1755749708703,0.7,188.09,188.08,0.03]
[1755749709132,4.40731111,188.09,188.08,0.03]
[1755749709913,0.7,188.09,188.08,0.03]
[1755749710224,4.40731111,188.09,188.08,0.03]
[1755749710604,18.14506669,188.09,188.08,0.03]
[1755749711324,55.80506669,188.09,188.08,0.03]
[1755749712324,55.80506669,188.09,188.07,0.1]
[1755749712325,13.73775558,188.08,188.07,0.1]
[1755749712497,22.83256669,188.08,188.07,0.1]
[1755749715747,46.07481111,188.08,188.07,0.1]
[1755749716410,60.51256669,188.08,188.07,0.1]
[1755749726638,22.13256669,188.08,188.07,0.1]
[1755749726843,46.07481111,188.08,188.07,0.1]
[1755749727048,8.45481111,188.08,188.07,0.76]
[1755749727257,4.7475,188.08,188.07,0.76]
[1755749727722,4.7475,188.08,188.07,3.17566714]
[1755749731052,8.45481111,188.08,188.07,3.17566714]
[1755749731558,8.45481111,188.08,188.07,2.231344]
[1755749731848,46.85481111,188.08,188.07,0.1]
[1755749733756,46.13481111,188.08,188.07,0.1]
[1755749734350,46.85481111,188.08,188.07,0.1]
[1755749735676,46.13481111,188.08,188.07,0.1]
[1755749736993,4.7475,188.08,188.07,0.76]
[1755749737289,4.7475,188.08,188.07,3.17578014]
[1755749739763,4.7475,188.08,188.07,6.88309125]
[1755749740371,4.7475,188.08,188.07,3.17578014]
[1755749740575,4.7475,188.08,188.07,2.51578014]
[1755749740749,4.7475,188.08,188.07,3.17578014]
[1755749741660,4.7475,188.08,188.07,6.88309125]
[1755749743352,4.7475,188.08,188.07,2.51578014]
[1755749746289,5.4675,188.08,188.07,2.51578014]
[1755749746658,4.7475,188.08,188.07,2.51578014]
[1755749748780,46.85481111,188.08,188.07,0.1]
[1755749749900,60.59256669,188.08,188.07,0.1]
[1755749757358,22.91256669,188.08,188.07,0.1]
[1755749757564,60.59256669,188.08,188.07,0.1]
[1755749763385,59.87256669,188.08,188.07,0.1]
[1755749763579,46.13481111,188.08,188.07,0.1]
[1755749763975,3.9575,188.08,188.07,4.48731111]
[1755749764189,3.9575,188.08,188.07,30.77163425]
[1755749764494,3.9575,188.08,188.07,34.72913425]
[1755749764811,3.9575,188.08,188.07,53.78405896]
[1755749765908,0.06,188.12,188.11,40.02207872]
[1755749766196,0.06,188.12,188.11,43.72938983]
[1755749766577,0.06,188.12,188.11,45.85948583]
[1755749766798,0.06,188.12,188.11,32.12173025]
[1755749767401,0.06,188.12,188.11,2.130096]
[1755749767402,0.72,188.12,188.11,2.130096]
[1755749767592,4.42731111,188.12,188.07,0.1]
[1755749767801,3.70731111,188.09,188.07,2.231344]
[1755749768003,0.66,188.08,188.07,2.51566714]
[1755749768406,3.70731111,188.1,188.07,2.51566714]
[1755749768592,0.66,188.09,188.07,2.51566714]
[1755749768923,0.66,188.08,188.07,0.1]
[1755749769503,4.36731111,188.08,188.07,0.1]
[1755749772496,3.70731111,188.08,188.07,0.1]
[1755749772815,3.70731111,188.09,188.07,0.1]
[1755749773592,4.36731111,188.09,188.07,0.1]
[1755749773919,37.8,188.11,188.07,0.1]
[1755749773920,4.36731111,188.08,188.07,0.1]
[1755749776511,3.70731111,188.08,188.07,0.1]
[1755749777020,4.36731111,188.08,188.07,0.1]
[1755749778718,3.70731111,188.08,188.07,0.1]
[1755749778897,0.06,188.09,188.07,0.1]
[1755749779099,0.06,188.09,188.07,2.51555414]
[1755749780116,0.06,188.09,188.07,0.38432314]
[1755749780318,0.06,188.09,188.08,4.02163414]
[1755749780716,0.72,188.09,188.08,3.737311]
[1755749781020,4.42731111,188.09,188.07,0.1]
[1755749781196,4.36731111,188.08,188.07,0.1]
[1755749781602,0.06,188.09,188.07,0.1]
[1755749782126,3.76731111,188.09,188.07,0.1]
[1755749782299,4.42731111,188.09,188.07,0.1]
[1755749782504,4.36731111,188.08,188.07,0.1]
[1755749784919,18.10506669,188.08,188.07,0.1]
[1755749785105,13.73775558,188.07,188.06,0.03]
[1755749785434,18.15506669,188.07,188.06,0.03]
[1755749788232,55.89506669,188.07,188.06,0.03]
[1755749788909,52.18775558,188.07,188.06,0.03]
[1755749789111,55.89506669,188.07,188.06,0.03]
[1755749791450,55.89506669,188.07,188.05,0.03]
[1755749791735,43.44506669,188.05,188.04,0.1]
[1755749792127,44.15506669,188.05,188.04,0.1]
[1755749793032,81.91506669,188.05,188.04,0.1]
[1755749806234,81.85506669,188.05,188.04,0.1]
[1755749809129,2.77577244,188.07,188.04,0.1]
[1755749809328,3.70731111,188.05,188.04,0.1]
[1755749809623,41.40731111,188.05,188.04,0.1]
[1755749809826,0.06,188.09,188.04,0.48432314]
[1755749810027,41.40731111,188.08,188.05,0.1]
[1755749810342,3.76731111,188.09,188.06,0.1]
[1755749810531,37.7,188.08,188.06,0.1]
[1755749810738,41.40731111,188.08,188.06,0.1]
[1755749810934,41.40731111,188.08,188.07,0.1]
[1755749811138,41.40731111,188.08,188.05,0.1]
[1755749811458,41.40731111,188.08,188.06,0.1]
[1755749812049,41.40731111,188.08,188.04,0.1]
[1755749812350,41.40731111,188.08,188.05,0.1]
[1755749812546,41.40731111,188.08,188.06,0.1]
[1755749812728,37.7,188.08,188.07,0.1]
[1755749813244,37.7,188.08,188.04,4.09163425]
[1755749813448,41.40731111,188.08,188.05,0.1]
[1755749813650,41.40731111,188.08,188.04,4.09163425]
[1755749813853,41.40731111,188.08,188.06,0.1]
[1755749815434,41.40731111,188.08,188.04,4.19163425]
[1755749815634,41.40731111,188.08,188.04,0.38432314]
[1755749815833,3.70731111,188.05,188.04,0.1]
[1755749816134,41.38731111,188.05,188.04,0.1]
[1755749816344,42.04731111,188.05,188.04,0.1]
[1755749818851,41.38731111,188.05,188.04,0.1]
[1755749819056,42.04731111,188.05,188.04,0.1]
[1755749819460,41.38731111,188.05,188.04,0.1]
[1755749820069,37.68,188.05,188.04,0.1]
[1755749820536,42.04731111,188.05,188.04,0.1]
[1755749826379,42.10731111,188.05,188.04,0.1]
[1755749831766,3.76731111,188.05,188.04,0.1]
[1755749833586,3.76731111,188.05,188.04,0.2]
[1755749834076,3.76731111,188.05,188.04,0.1]
[1755749838182,0.06,188.05,188.04,0.2]
[1755749838384,0.06,188.05,188.04,4.19163425]
[1755749838583,0.06,188.05,188.04,30.19163425]
[1755749840299,0.06,188.05,188.04,32.32275125]
[1755749840466,0.06,188.05,188.04,51.37852427]
[1755749842202,0.06,188.05,188.04,46.06050683]
[1755749844690,0.06,188.05,188.04,125.86050683]
[1755749845288,0.06,188.05,188.04,131.17852427]
[1755749845600,0.06,188.05,188.04,125.86050683]
[1755749846396,0.06,188.05,188.04,163.52050683]
[1755749848273,0.06,188.05,188.04,168.83852427]
[1755749849395,0.06,188.05,188.04,163.52050683]
[1755749849973,0.06,188.05,188.04,168.83852427]
[1755749854082,0.06,188.05,188.04,165.13121316]
[1755749854295,0.06,188.05,188.04,168.83852427]
[1755749856416,0.06,188.07,188.06,14.02207872]